[Event "CCT Chessable Masters Playoffs 2025"]
[Site "Online"]
[Date "2025.02.19"]
[Round "4"]
[White "Nakamura, Hikaru"]
[Black "Carlsen, Magnus"]
[Result "1/2-1/2"]
[Annotator "TA"]
[ECO "A06"]
[WhiteElo "2802"]
[BlackElo "2833"]
[PlyCount "204"]
[EventDate "2025.02.13"]
[EventType "k.o."]
[EventCountry "NET"]
[SourceTitle "playchess.com"]
[Source "ChessBase"]
[SourceQuality "1"]
[TimeControl "600"]

{[%evp 9,203,18,18,0,0,0,23,19,22,28,31,29,31,8,19,0,4,2,2,-4,18,12,22,18,13,4,0,0,0,0,0,-11,4,0,13,8,40,40,38,37,33,24,12,18,45,25,28,34,29,31,29,29,40,33,39,34,37,33,41,26,39,21,33,18,39,6,35,24,24,0,0,0,0,0,0,0,137,-108,-82,-123,0,-130,0,-119,-118,-123,-134,-131,-125,-127,-117,-122,-118,-128,-106,-108,0,-115,-115,-123,-126,-147,-148,-144,-144,-148,-135,-131,-135,-145,-124,-131,-130,-138,-102,-125,-120,-116,-88,-89,-85,-85,-85,-85,-85,-107,0,0,0,-105,-101,-103,-93,-139,-134,-139,-139,-139,-139,-139,-145,-146,-146,-142,-124,-133,-124,-139,-139,-154,-154,-169,-140,-133,-110,-95,-106,-165,-131,-169,-119,-125,-27,-29961,-29962,-29950,-11887,-5672,-5672,-5585,-8,-8,-8,-8,-8,-8,-8,-8,-8,-8,-8,-8,-8,-8,-8,-8,-8,-8,-8,-8,-8,-8,-8,-8,-8,-8]} 1. b3 {[%emt 0:00:00]} d5 {[%emt 0:00:02]} 2. Bb2 {[%emt 0:00:01]} c5 {[%emt 0:00:01]} 3. e3 {[%emt 0:00:01]} Nc6 {[%emt 0:00:01]} 4. Bb5 {[%emt 0:00:01]} Bd7 {[%emt 0:00:05]} 5. Nf3 {[%emt 0:00:10]} Nf6 {[%emt 0:00:02]} 6. c4 {[%emt 0:00:02] A06: Réti Opening: 1 Nf3 d5.} e6 {[%emt 0:00:14]} 7. cxd5 {[%emt 0:00:04]} Nxd5 {[%emt 0:00:01]} 8. O-O {[%emt 0:00:04] White has an edge.} Rc8 {[%emt 0:00:03]} 9. Nc3 {[%emt 0:00:10]} Nf6 {[%emt 0:00:22]} 10. Rc1 {[%emt 0:00:11]} Be7 {[%emt 0:00:06]} 11. Na4 $146 {[%emt 0:01:26]} ({Predecessor:} 11. d4 cxd4 12. Nxd4 O-O 13. Nxc6 Bxc6 14. Bxc6 Rxc6 15. Qxd8 Rxd8 16. Rfd1 Rdc8 {½-½ Doluhanova,E (2209)-Cosma,E (2296) ROM-chT (Women) 2021 (2.2)}) 11... b6 {[%emt 0:00:20]} 12. Ba6 {[%emt 0:00:18]} Rc7 {[%emt 0:00:01]} 13. Nc3 {[%emt 0:00:04]} Bc8 {[%emt 0:00:44]} 14. Be2 {[%emt 0:00:05]} Bb7 {[%emt 0:00:05]} 15. d4 {[%emt 0:00:08]} cxd4 {[%emt 0:00:06]} 16. Nb5 {[%emt 0:00:50]} Rd7 {[%emt 0:00:02]} 17. Nbxd4 {[%emt 0:00:00]} Nxd4 {[%emt 0:00:03]} 18. Bxd4 {[%emt 0:00:02]} O-O {[%emt 0:00:55] The position is symmetric and equal} 19. Qc2 {[%emt 0:01:27]} Ba3 {[%emt 0:00:12]} 20. Rcd1 {[%emt 0:00:01]} Qc7 {[%emt 0:01:09]} (20... Nd5 {is interesting.} 21. Bb5 Qc7 22. Qb1 Rdd8) 21. Qb1 {[%emt 0:00:11]} Be4 {[%emt 0:00:06]} 22. Qa1 {[%emt 0:00:01]} Be7 {[%emt 0:00:46]} 23. Ne5 {[%emt 0:00:06]} Rdd8 {[%emt 0:00:13]} 24. Rc1 {[%emt 0:00:01]} Qb8 {[%emt 0:00:06]} 25. Nc6 {[%emt 0:00:22]} Bxc6 {[%emt 0:00:01]} 26. Rxc6 {[%emt 0:00:00]} Rc8 {[%emt 0:00:03]} 27. Rfc1 {[%emt 0:00:01]} Rxc6 {[%emt 0:00:01]} 28. Rxc6 {[%emt 0:00:00]} Rc8 {[%emt 0:00:06]} 29. Qc1 {[%emt 0:00:01]} Rxc6 {[%emt 0:00:02]} 30. Qxc6 {[%emt 0:00:00]} h6 {[%emt 0:00:31] Black is weak on the light squares} 31. h3 {[%emt 0:00:21]} Bd6 {[%emt 0:00:03]} 32. Bd3 {[%emt 0:00:02]} Kf8 {[%emt 0:00:05]} 33. Bb2 {[%emt 0:00:06]} Ke7 {[%emt 0:00:03]} 34. Qa4 {[%emt 0:00:11]} a5 {[%emt 0:00:09]} 35. Qb5 {[%emt 0:00:17]} Qc7 {[%emt 0:00:02]} 36. Kf1 {[%emt 0:00:03]} Qc5 {[%emt 0:00:02]} (36... g5 37. Qc4 Qxc4 38. Bxc4 h5) 37. Qa4 {[%emt 0:00:13]} (37. Qxc5 Bxc5 38. g3 g6 39. e4) 37... Qb4 {[%emt 0:00:06]} 38. Qc6 {[%emt 0:00:06]} (38. Qxb4 Bxb4 39. g4 Bd6 40. Be2) 38... Qd2 {[%emt 0:00:12][%csl LRb2,LRd3]} 39. Bc2 {[%emt 0:00:14] Inhibits Qd1+.} (39. Qc2 {simplifies} Qxc2 40. Bxc2 g6 41. Ke2) 39... Bc5 {[%emt 0:00:20]} 40. Qb7+ {[%emt 0:00:09]} Nd7 {[%emt 0:00:12]} (40... Kf8 $5 41. Qa8+ $8 Ke7 42. Qb7+ Kd6 43. Qb8+ Ke7 44. Qb7+ $11) 41. Qe4 {[%emt 0:00:01]} Bb4 $40 {[%emt 0:00:17][%csl Gb4][%cal Rd2e1][%mdl 128] White needs to defend precisely.} 42. g3 {[%emt 0:00:03]} Nc5 {[%emt 0:00:02] [#]} (42... Bc3 $11 {keeps the balance.} 43. Ba3+ Bb4) 43. Qh7 $2 {[%emt 0:00:21]} (43. Qc4 $1 $16 {is forced if you want to stay better.}) 43... Bc3 {[%emt 0:00:11]} (43... g6 $6 44. Qh8 $11) 44. Ba3 {[%emt 0:00:00]} Bb4 {[%emt 0:00:01]} 45. Bb2 {[%emt 0:00:08]} Bc3 {[%emt 0:00:07]} (45... g6 $6 46. Qh8 $11) 46. Ba3 {[%emt 0:00:05]} f5 {[%emt 0:00:02]} 47. Bxc5+ {[%emt 0:00:31]} bxc5 {[%emt 0:00:01]} 48. Bxf5 {[%emt 0:00:01]} exf5 {[%emt 0:00:00]} 49. Qxf5 {[%emt 0:00:00]} Qd6 {[%emt 0:00:05]} (49... Qxa2 $2 50. Qxc5+ Kf7 51. Qxc3 $18) 50. Qe4+ {[%emt 0:00:02]} Qe6 {[%emt 0:00:03]} 51. Qb7+ {[%emt 0:00:01]} Qd7 {[%emt 0:00:08]} 52. Qe4+ {[%emt 0:00:02]} Qe6 {[%emt 0:00:04]} 53. Qb7+ {[%emt 0:00:01]} Kf6 {[%emt 0:00:01]} 54. Kg2 {[%emt 0:00:01]} Kg6 {[%emt 0:00:01]} 55. Qf3 {[%emt 0:00:12]} c4 {[%emt 0:00:08]} 56. bxc4 {[%emt 0:00:11]} Qxc4 {[%emt 0:00:02][%cal Oa5a4]} 57. e4 {[%emt 0:00:00][%csl Ge4][%cal Rf3f5]} Bf6 {[%emt 0:00:04]} 58. Qf5+ {[%emt 0:00:02]} Kf7 {[%emt 0:00:00]} 59. Qh5+ {[%emt 0:00:01]} Kg8 {[%emt 0:00:04]} 60. Qxa5 {[%emt 0:00:00]} Qxe4+ {[%emt 0:00:01]} 61. Kg1 {[%emt 0:00:01]} Qd3 {[%emt 0:00:05]} 62. Qa8+ {[%emt 0:00:02]} Kh7 {[%emt 0:00:01]} 63. Kg2 {[%emt 0:00:02]} Qc2 {[%emt 0:00:05]} 64. Qd5 {[%emt 0:00:02]} Qa4 {[%emt 0:00:01]} 65. Qf5+ {[%emt 0:00:01]} Kg8 {[%emt 0:00:01]} 66. Qd5+ {[%emt 0:00:01]} Kf8 {[%emt 0:00:01]} 67. Qc5+ {[%emt 0:00:01]} Be7 {[%emt 0:00:01]} (67... Ke8 $17 {Hoping for ...Qa8+.} 68. Qh5+ Ke7 69. Qc5+ Ke6) 68. Qf5+ $1 $11 {[%emt 0:00:01]} Bf6 {[%emt 0:00:01]} (68... Ke8 $11 69. Qe6 Qd7 70. Qg8+ Bf8) 69. Qc5+ $1 $17 {[%emt 0:00:01]} Kf7 {[%emt 0:00:00]} 70. Qd5+ {[%emt 0:00:00]} Ke7 {[%emt 0:00:01]} 71. Qc5+ {[%emt 0:00:01]} ({White should try} 71. Qb7+ Kd6 72. Qb1) 71... Ke6 {[%emt 0:00:01]} 72. Qc8+ {[%emt 0:00:00]} Kd6 {[%emt 0:00:00]} 73. Qf8+ {[%emt 0:00:02]} Kd5 {[%emt 0:00:02]} 74. Qf7+ {[%emt 0:00:01]} Kd4 {[%emt 0:00:01]} 75. Qe6 {[%emt 0:00:02] and Qg4+ should not be overlooked} Kc3 {[%emt 0:00:00]} 76. h4 {[%emt 0:00:03]} Kb2 {[%emt 0:00:01]} 77. Qe2+ {[%emt 0:00:04]} Ka3 {[%emt 0:00:02]} 78. Kh3 {[%emt 0:00:03]} Qd7+ {[%emt 0:00:01]} 79. g4 {[%emt 0:00:00]} Qd5 {[%emt 0:00:01]} 80. f3 {[%emt 0:00:01]} Bb2 {[%emt 0:00:01][%cal Ob2c1]} ({And not} 80... Qxa2 81. Qa6+ Kb2 82. Qe2+ Kb3 (82... Ka1 83. Qe1+ Kb2 84. Qe2+ Kb3 85. Qe6+ Ka3 86. Qa6+ Kb2 87. Qe2+ $11) 83. Qe6+ Ka3 (83... Kb2 84. Qe2+ Kb3 85. Qe6+ Kb2 86. Qe2+ $11) 84. Qd6+ Kb2 85. Qd2+ Ka3 (85... Ka1 86. Qc1+ Qb1 87. Qa3+ Qa2 88. Qc1+ Qb1 89. Qa3+ Qa2 90. Qc1+ $11) 86. Qa5+ Kb2 87. Qd2+ Kb3 88. Qd5+ Kb2 89. Qd2+ $11) 81. Qa6+ {[%emt 0:00:01]} Kb4 {[%emt 0:00:02]} 82. Qb6+ {[%emt 0:00:00]} Kc3 {[%emt 0:00:00]} 83. Qe3+ {[%emt 0:00:02]} (83. Kg3 $17) 83... Kc2 {[%emt 0:00:01][%cal Ob2c1]} 84. Qe2+ {[%emt 0:00:00]} Kb1 {[%emt 0:00:01]} (84... Qd2 $19 85. Qc4+ Bc3 86. Qb3+ Kc1) 85. a4 {[%emt 0:00:01]} Bc3 {[%emt 0:00:01]} (85... Ka1 $17 86. h5 Bc3) 86. Qe4+ $2 {[%emt 0:00:00][%mdl 8192] [#]} (86. Qb5+ $11 Qxb5 87. axb5) 86... Qxe4 {[%emt 0:00:02]} 87. fxe4 {[%emt 0:00:01]} Kc2 {[%emt 0:00:00]} (87... g5 $142 88. a5 Bxa5 89. e5 Kc2 90. hxg5 hxg5 91. e6 Bb4 92. Kg3 Kd3 93. Kf3 Kd4 94. Kf2 Ke5 95. Ke2 Kxe6 96. Kf2 Bc5+ 97. Kf3 Ke5 98. Kg3 Ke4 99. Kg2 Kf4 100. Kh3 Kf3 101. Kh2 Kxg4 102. Kg2 Kf4 103. Kf1 g4 104. Ke2 g3 105. Kd3 g2 106. Kc4 g1=Q (106... g1=R 107. Kxc5 Ke4 108. Kd6 Rg5 109. Ke7 Ke5 110. Kd7 Rg6 111. Kc7 Kd5 112. Kd7 Rg7+ 113. Ke8 Ke6 114. Kd8 Rh7 115. Kc8 Kd6 116. Kb8 Kc6 117. Ka8 Kb6 118. Kb8 Rh8#) 107. Kd5 Qd4+ 108. Kc6 Qd6+ 109. Kb7 Qd7+ 110. Ka6 Qc6+ 111. Ka5 Qb6+ 112. Ka4 Qb4#) 88. h5 $19 {[%emt 0:00:01]} Kd3 {[%emt 0:00:01]} 89. g5 {[%emt 0:00:00]} Kxe4 $2 {[%emt 0:00:04]} (89... hxg5 $19 90. Kg4 Kxe4 91. Kxg5 Bd2+ 92. Kg6 Bh6) 90. gxh6 $11 {[%emt 0:00:00] The position is equal.} gxh6 $19 {[%emt 0:00:00] KB-KPP} 91. Kg2 $1 {[%emt 0:00:00]} Kf4 {[%emt 0:00:01]} 92. Kh1 {[%emt 0:00:00]} Ba5 {[%emt 0:00:01]} 93. Kg2 {[%emt 0:00:00]} Kg4 {[%emt 0:00:00]} 94. Kh1 {[%emt 0:00:00]} Kxh5 $11 {[%emt 0:00:00] KB-KP} 95. Kg2 {[%emt 0:00:01]} Kg4 {[%emt 0:00:00]} 96. Kh1 {[%emt 0:00:00]} h5 {[%emt 0:00:00][%cal Bh6h5,Bh5h4,Bh4h3,Bh3h2][%mdl 32]} 97. Kg2 {[%emt 0:00:00]} h4 {[%emt 0:00:00]} 98. Kh1 {[%emt 0:00:00]} h3 {[%emt 0:00:01]} 99. Kh2 {[%emt 0:00:00]} Kh4 {[%emt 0:00:00]} 100. Kh1 {[%emt 0:00:00]} Kg3 {[%emt 0:00:00]} 101. Kg1 {[%emt 0:00:01]} h2+ {[%emt 0:00:00]} 102. Kh1 {[%emt 0:00:00]} Kh3 {[%emt 0:00:00] And White is the lucky defender.   Weighted Error Value: White=0.13 (very precise) /Black=0.18 (very precise)   Loses game:     	White=1     	---        Mistake:       	White=3     	Black=5      Inaccurate:     	White=2     	Black=3      OK:         	White=33    	Black=43     Best:        	White=3     	Black=5      Strong:       	White=3     	---} 1/2-1/2

[Event "CCT Chessable Masters Playoffs 2025"]
[Site "Online"]
[Date "2025.02.21"]
[Round "5"]
[White "Carlsen, Magnus"]
[Black "Nakamura, Hikaru"]
[Result "1-0"]
[Annotator "TA"]
[ECO "C54"]
[WhiteElo "2833"]
[BlackElo "2802"]
[PlyCount "81"]
[EventDate "2025.02.13"]
[EventType "k.o."]
[EventCountry "NET"]
[SourceTitle "playchess.com"]
[Source "ChessBase"]
[SourceQuality "1"]
[TimeControl "600"]

{[%evp 14,81,32,9,29,18,28,28,29,2,20,18,13,13,13,13,28,7,26,22,13,25,10,0,7,-14,-6,-22,0,0,0,0,6,-11,0,0,8,16,0,0,7,0,33,29,29,20,63,48,148,118,143,136,439,428,426,416,843,842,984,956,1023,1001,1080,1066,1276,1242,1087,1011,4897,1029]} 1. e4 {[%emt 0:00:01]} e5 {[%emt 0:00:02]} 2. Nf3 {[%emt 0:00:01]} Nc6 {[%emt 0:00:00]} 3. Bc4 {[%emt 0:00:01]} Nf6 {[%emt 0:00:01]} 4. d3 {[%emt 0:00:01]} h6 {[%emt 0:00:01]} 5. O-O {[%emt 0:00:04]} Bc5 {[%emt 0:00:02]} 6. c3 {[%emt 0:00:03]} d6 {[%emt 0:00:00]} 7. Nbd2 {[%emt 0:00:17]} O-O {[%emt 0:00:07]} 8. h3 {[%emt 0:00:17]} Bb6 {[%emt 0:00:02] C54: Giuoco Piano: 4 c3 Nf6, main lines with 5 d4 and 5 d3.} 9. Re1 {[%emt 0:00:07]} a5 {[%emt 0:00:03]} 10. a4 {[%emt 0:00:28]} Be6 {[%emt 0:00:18] White has an edge.} 11. b3 {[%emt 0:00:21]} Re8 {[%emt 0:00:12]} 12. Bb5 $146 {[%emt 0:00:02]} ({Predecessor:} 12. Bb2 Ne7 13. Bxe6 fxe6 14. Nc4 Ng6 15. Nxb6 cxb6 16. d4 Qc7 17. c4 Rad8 18. Qd2 {0-1 Niemann,H (2733)-Nakamura,H (2802) Chess.com SpeedChess Final blitz 2024 (2.16)}) 12... Bd7 {[%emt 0:00:51]} 13. Nc4 {[%emt 0:00:04] The position is symmetric and equal} Bc5 {[%emt 0:00:02]} 14. Bd2 {[%emt 0:00:16]} Ba7 {[%emt 0:00:11]} 15. Bxc6 {[%emt 0:00:48]} Bxc6 {[%emt 0:00:07]} 16. Nxa5 {[%emt 0:00:01]} Bxf2+ $1 {[%emt 0:00:02]} 17. Kxf2 {[%emt 0:00:00] [#] And now Nxc6 would win.} Rxa5 {[%emt 0:00:01]} 18. b4 {[%emt 0:00:04][%cal Bb3b4,Bb4b5][%mdl 32]} Ra8 {[%emt 0:00:01]} 19. b5 {[%emt 0:00:00]} Bd7 {[%emt 0:00:01]} 20. c4 {[%emt 0:00:01][%cal Bc3c4,Bc4b5,Bb5a6,Ba6a7][%mdl 32]} c6 {[%emt 0:00:25]} 21. Kg1 {[%emt 0:00:05]} Be6 {[%emt 0:00:03]} 22. a5 {[%emt 0:00:11]} Nd7 {[%emt 0:00:06][%cal Bf6d7,Bd7c5,Bc5e6,Be6c5,Bc5d3][%mdl 32]} 23. Kh1 {[%emt 0:00:18]} cxb5 {[%emt 0:00:18]} 24. cxb5 {[%emt 0:00:01]} Nc5 {[%emt 0:00:01]} 25. Ra3 {[%emt 0:00:29]} Bd7 {[%emt 0:00:32]} 26. Qb1 {[%emt 0:00:26]} Ne6 {[%emt 0:01:31]} 27. a6 {[%emt 0:00:05]} bxa6 {[%emt 0:00:10]} 28. bxa6 {[%emt 0:00:02]} Nc5 {[%emt 0:00:42]} 29. a7 {[%emt 0:00:02]} Qc7 {[%emt 0:00:00]} 30. Qa1 {[%emt 0:00:03]} Bb5 {[%emt 0:00:01]} (30... Ba4 $14) 31. Be3 {[%emt 0:00:55]} Nxd3 {[%emt 0:01:08]} 32. Rb1 {[%emt 0:00:01]} Bc4 {[%emt 0:00:00][%mdl 8192] [#] Loses the game.} (32... Qd7 $16) 33. Nd2 $18 {[%emt 0:00:10]} d5 {[%emt 0:02:11]} 34. exd5 {[%emt 0:00:03][%cal Be4d5,Bd5d6][%mdl 32]} f5 {[%emt 0:00:08]} (34... Nf2+ $142 35. Bxf2 Bxd5) 35. Qc3 {[%emt 0:00:12] White is clearly winning.} e4 {[%emt 0:00:13]} 36. Qxc4 {[%emt 0:00:16]} Qg3 {[%emt 0:00:00]} 37. Nf1 {[%emt 0:00:14]} Nf2+ {[%emt 0:00:03]} 38. Bxf2 {[%emt 0:00:00]} Qxa3 {[%emt 0:00:01]} 39. d6+ {[%emt 0:00:03]} Kh7 {[%emt 0:00:03]} 40. Qd5 {[%emt 0:00:05]} f4 {[%emt 0:00:08]} 41. Qf5+ {[%emt 0:00:01] Weighted Error Value: White=0.10 (very precise) /Black=0.81  Loses game:     	---       	Black=1      Mistake:       	---       	Black=2      Inaccurate:     	White=1     	Black=2      OK:         	White=13    	Black=9      Best:        	White=2     	---        Strong:       	---       	Black=1} (41. d7 $142 Qf8 42. Bc5 (42. dxe8=B Qxe8 43. Bd4 f3 $18)) 1-0

[Event "CCT Chessable Masters Playoffs 2025"]
[Site "Online"]
[Date "2025.02.21"]
[Round "5"]
[White "Nakamura, Hikaru"]
[Black "Carlsen, Magnus"]
[Result "1/2-1/2"]
[Annotator "TA"]
[ECO "A05"]
[WhiteElo "2802"]
[BlackElo "2833"]
[PlyCount "93"]
[EventDate "2025.02.13"]
[EventType "k.o."]
[EventCountry "NET"]
[SourceTitle "playchess.com"]
[Source "ChessBase"]
[SourceQuality "1"]
[TimeControl "600"]

{[%evp 9,93,-8,-10,-4,6,-6,0,0,0,-6,22,0,0,0,0,0,-3,-41,0,-41,-31,-49,-24,-30,-43,-50,-44,-57,-54,-62,-60,-54,0,0,97,93,91,82,102,27,20,16,11,12,18,8,8,14,106,0,31,0,12,-48,-50,-52,-52,-102,-66,-210,-204,-210,-182,-271,-277,-268,-241,-219,-104,-177,-168,-167,-150,-147,-135,-174,-177,-257,0,0,0,-242,0,0,0,-191]} 1. b3 {[%emt 0:00:00]} c5 {[%emt 0:00:08]} 2. Bb2 {[%emt 0:00:01]} Nc6 {[%emt 0:00:05]} 3. Nf3 {[%emt 0:00:07]} Nf6 {[%emt 0:00:02]} 4. e3 {[%emt 0:00:03]} g6 {[%emt 0:00:04]} 5. Bxf6 {[%emt 0:00:27]} exf6 {[%emt 0:00:01]} 6. c4 {[%emt 0:00:00] A05: Réti Opening: 1 Nf3 Nf6.} d5 {[%emt 0:00:09]} 7. cxd5 {[%emt 0:00:02]} Qxd5 {[%emt 0:00:01]} 8. Nc3 {[%emt 0:00:01]} Qd8 {[%emt 0:00:03]} 9. Rc1 {[%emt 0:00:06]} Bd7 {[%emt 0:00:39]} 10. Bb5 $146 {[%emt 0:00:21]} (10. Bc4 Be7 11. O-O O-O 12. d4 cxd4 13. Nxd4 Ba3 14. Nxc6 Bxc6 15. Rc2 Qxd1 16. Rxd1 {½-½ Moskalenko,A (2522)-Kryakvin,D (2580) Dvorkovich Memorial op 2018 (4)}) 10... Rc8 {[%emt 0:00:05]} 11. O-O {[%emt 0:00:03]} a6 {[%emt 0:01:09]} 12. Be2 {[%emt 0:01:30]} Be7 {[%emt 0:00:10]} 13. Ne4 {[%emt 0:00:22]} Qb6 {[%emt 0:00:39]} 14. Qc2 {[%emt 0:00:32][%cal Re4c5]} Bf5 {[%emt 0:00:04]} 15. d3 {[%emt 0:00:01]} O-O {[%emt 0:00:04]} 16. Qb2 {[%emt 0:00:05]} Nb4 {[%emt 0:00:32]} 17. a3 {[%emt 0:00:32]} Nd5 {[%emt 0:00:01]} 18. Nfd2 {[%emt 0:00:00][%cal Bf3d2,Bd2c4,Bc4d6][%mdl 32]} Rfd8 {[%emt 0:00:05]} 19. Bf3 {[%emt 0:00:04]} Be6 {[%emt 0:00:06]} 20. Nc4 {[%emt 0:00:06]} Qc7 {[%emt 0:00:07]} (20... Qa7 $1 $15 21. Ng3 b5) 21. d4 $1 $11 {[%emt 0:00:09]} cxd4 {[%emt 0:00:03] [#]} (21... b6 $11) 22. Ncd6 $1 $36 {[%emt 0:00:02][%mdl 2048] White attacks White is on the roll.} Bxd6 {[%emt 0:00:17]} (22... Nc3 $2 23. Nxc8 Bxc8 24. exd4 $18) 23. Rxc7 {[%emt 0:00:02]} (23. Qxd4 $2 Qxc1 (23... Bxh2+ $2 24. Kh1 $19) 24. Nxd6 Rxd6 $19 (24... Qxa3 $2 25. Nxc8 Rd7 26. e4 $19)) 23... Bxc7 {[%emt 0:00:00] A strong pair of Bishops.} 24. Qxd4 {[%emt 0:00:26]} (24. exd4 $16 {Black must now prevent Nc5.} b6 25. g3) 24... Be5 $11 {[%emt 0:00:02]} 25. Qa7 {[%emt 0:00:52]} b6 {[%emt 0:00:23]} 26. Qxa6 {[%emt 0:00:21]} Ra8 {[%emt 0:00:07]} 27. Qb5 {[%emt 0:00:09] next a4 is good for White.} Rxa3 {[%emt 0:00:03]} 28. Rd1 {[%emt 0:00:04]} Rc8 {[%emt 0:00:43] Dodges Nc3} (28... Kg7 $11 {keeps the balance.}) 29. g3 {[%emt 0:00:13]} (29. Rxd5 $2 Bxd5 (29... Ra5 30. Qxb6 Rxd5 31. g4 $11) 30. g4 (30. Qxd5 $2 Rc1+ 31. Bd1 Raa1 $19) 30... Be6 $19 (30... Rxb3 $2 31. Qxd5 Rb4 32. g5 $18) (30... Bxb3 31. Kg2 $17)) (29. b4 $1 $16) 29... Ra5 $14 {[%emt 0:00:01]} 30. Qf1 {[%emt 0:00:02]} Kg7 {[%emt 0:00:02]} 31. Nd2 {[%emt 0:00:10]} (31. h3 $11) 31... Nc3 $15 {[%emt 0:00:03] Strong Square Black (c3)} 32. Re1 {[%emt 0:00:00]} b5 $1 {[%emt 0:00:06] Repels Nc4} 33. Bg2 {[%emt 0:00:26]} (33. Bb7 $15 Rd8 34. Nf3) 33... Rd8 $17 {[%emt 0:00:03]} 34. Nf3 {[%emt 0:00:10]} ({White should try} 34. Ne4 $1 $15 b4 (34... Bxb3 35. f4 $18) 35. Nxc3 bxc3 36. f4) 34... Bxb3 $19 {[%emt 0:00:01]} 35. Nxe5 {[%emt 0:00:00]} fxe5 {[%emt 0:00:01]} 36. f4 {[%emt 0:00:26]} (36. Bb7) 36... Bc4 $1 {[%emt 0:00:23]} 37. Qf3 {[%emt 0:00:01]} e4 {[%emt 0:00:03]} 38. Qg4 {[%emt 0:00:01]} Ra2 {[%emt 0:00:07]} (38... b4 $19 {...b3 is the strong threat.} 39. f5 Rxf5 40. Bxe4 h5) 39. f5 {[%emt 0:00:02]} (39. Qg5 $17 {was worth a try.} Rd5 40. Qe7) 39... Rdd2 {[%emt 0:00:03]} 40. f6+ {[%emt 0:00:06]} Kxf6 {[%emt 0:00:05] Black has a king side majority} 41. Qf4+ {[%emt 0:00:01] [#]} Kg7 $1 {[%emt 0:00:04]} 42. Qe5+ {[%emt 0:00:05] [#]} f6 $1 {[%emt 0:00:16]} 43. Qc7+ {[%emt 0:00:04]} (43. Qe7+ $142 Bf7 44. Bh1) 43... Kh6 {[%emt 0:00:14]} 44. Qf4+ $1 {[%emt 0:00:01]} Kg7 {[%emt 0:00:02]} 45. Qc7+ $1 {[%emt 0:00:01]} Kh6 $2 {[%emt 0:00:02]} ({Black should try} 45... Bf7 $19 46. Bh3 Rac2 (46... Rxh2 47. Be6 $11)) 46. Qf4+ $1 $11 {[%emt 0:00:50]} Kg7 $2 {[%emt 0:00:01]} (46... g5 $11 47. Qxf6+ Kh5) 47. Qc7+ $1 {[%emt 0:00:43] Weighted Error Value: White=0.21 (precise) /Black=0.27 (precise)   Missed win:     	---       	Black=1      Mistake:       	White=8     	Black=5      Inaccurate:     	White=2     	Black=2      OK:         	White=12    	Black=15     Best:        	White=5     	Black=5      Strong:       	White=5     	Black=4      Brilliant:      	White=1     	---} 1/2-1/2